Workbook

Sheet Разде1.НИ
A1: ПЕРЕЧЕНЬ ОСНОВНЫХ СРЕДСТВ
A2: Муниципальное бюджетное общеобразовательное учреждение "Гимназия №3 Зеленодольского муниципального района Республики Татарстан"
A3: по состоянию на 29.12.2021
A5: Счет | D5: 00000000000000000.0.00000
A6: Балансовая стоимость
A7: Остаточная стоимость
A9: Раздел 1.Недвижимое имущество
A11: № п/п | B11: Наименование имущества, номер идентификаци объекта | C11: Инвентарный номер | D11: Кадастровый номер | E11: Наименование и характеристика объекта (этажность, материал постройки и пр.) | F11: Местонахождение (адрес) | G11: Количество | K11: Год ввода (приобретения) | L11: Первоначально-восстановительная стоимость тыс. руб. | M11: Износ | O11: Остаточная стоимость тыс.руб. | P11: Кадастровая стоимость, рублей | Q11: Возникновение права муниципальной собственности | S11: Прекращение права муниципальной собственности | U11: Наименование правообладатель муниципального недвижимого имущества (согласно Уставу) | V11: Право обладания имуществом (оепартивное управление, безвозмездное пользование) | W11: Сведения об установленных ограничениях (обременениях) с указанием основания и даты их возникновения и прекращения
G12: шт. или пог.м. | H12: площадь (кв.м.) | M12: % | N12: руб.
H13: общая | I13: полезная | J13: встроен.пристр. | Q13: дата документа | R13: номер и наименование документа | S13: дата документа | T13: номер и наименование документа
A14: 1 | B14: 2 | C14: 3 | D14: 4 | E14: 5 | F14: 6 | G14: 7 | H14: 8 | I14: 9 | J14: 10 | K14: 11 | L14: 12 | M14: 13 | N14: 14 | O14: 15 | P14: 16 | Q14: 17 | R14: 18 | S14: 19 | T14: 20 | U14: 21 | V14: 22 | W14: 23
B15: 1. Основные средства
B16: 1.1. Объекты недвижимости
B17: 1.1.1.Здания | C17: 01010001 | D17: 16:49:010105:54:3 | E17: Здание гимназии | F17: г.Зеленодольск, ул.Космонатов, д.13 | G17: 1 | H17: 5170.6 | I17: 5170.6 | K17: 1967 | L17: 14263.75 | M17: 61% | N17: 88821916 | O17: 5442 | Q17: 2008-02-18 | R17: 08-006-0021 | U17: ИК ЗМР РТ | V17: оперативное управление
B18: 1.1.1.1. Производственные здания
B19: 1.1.1.2. Другие здания
B20: 1.1.1.3. Жилые помещения
B21: 1.1.1.4. Детские учреждения
B22: 1.1.1.5. Базы отдыха
B23: 1.1.2. Сооружения | C23: 01100001 | E23: Асфальтовое покрытие | F23: г.Зеленодольск, ул.Космонатов, д.13 | G23: 1 | K23: 01/11/1967 | L23: 174.24 | M23: 100 | N23: 174242.88 | O23: 0 | Q23: 2008-02-18 | R23: 08-006-0021 | U23: ИК ЗМР РТ | V23: оперативное управление
C24: 01100002 | E24: Ворота металические | F24: г.Зеленодольск, ул.Космонатов, д.13 | G24: 1 | K24: 02/11/1967 | L24: 14.12 | M24: 100 | N24: 14121.20 | O24: 0 | Q24: 2008-02-18 | R24: 08-006-0021 | U24: ИК ЗМР РТ | V24: оперативное управление
C25: 01100004 | E25: Металлическое хранилище | F25: г.Зеленодольск, ул.Космонатов, д.13 | G25: 1 | K25: 01/08/1986 | L25: 7.68 | M25: 100 | N25: 7681.52 | O25: 0 | Q25: 2008-02-18 | R25: 08-006-0021 | U25: ИК ЗМР РТ | V25: оперативное управление
C26: 01100003 | E26: Металлическое хранилище д/инвентаря | F26: г.Зеленодольск, ул.Космонатов, д.13 | G26: 1 | K26: 01/11/1986 | L26: 7.63 | M26: 100 | N26: 7633.36 | O26: 0 | Q26: 2008-02-18 | R26: 08-006-0021 | U26: ИК ЗМР РТ | V26: оперативное управление
C27: 00120003 | E27: Наружная канализация | F27: г.Зеленодольск, ул.Космонатов, д.13 | G27: 1 | K27: 01/11/1967 | L27: 28.92 | M27: 100 | N27: 28920.08 | O27: 0 | Q27: 2008-02-18 | R27: 08-006-0021 | U27: ИК ЗМР РТ | V27: оперативное управление
C28: 01200001 | E28: Наружная теплосеть | F28: г.Зеленодольск, ул.Космонатов, д.13 | G28: 1 | K28: 01/11/1967 | L28: 25.30 | M28: 100 | N28: 25302.92 | O28: 0 | Q28: 2008-02-18 | R28: 08-006-0021 | U28: ИК ЗМР РТ | V28: оперативное управление
C29: 01200002 | E29: Наружная электроосветительная сеть | F29: г.Зеленодольск, ул.Космонатов, д.13 | G29: 1 | K29: 01/11/1967 | L29: 8.93 | M29: 100 | N29: 8926.56 | O29: 0 | Q29: 2008-02-18 | R29: 08-006-0021 | U29: ИК ЗМР РТ | V29: оперативное управление
C30: 01100005 | E30: Ограждение | F30: г.Зеленодольск, ул.Космонатов, д.13 | G30: 1 | K30: 01/11/1967 | L30: 84.74 | M30: 100 | N30: 84742.68 | O30: 0 | Q30: 2008-02-18 | R30: 08-006-0021 | U30: ИК ЗМР РТ | V30: оперативное управление
C31: 101040000105015 | E31: Универсальная спортивная площадка | F31: г.Зеленодольск, ул.Космонатов, д.13 | G31: 1 | K31: 18/01/2017 | L31: 2930.75 | M31: 18.33 | N31: 1123454.80 | O31: 1807.35 | Q31: 2008-02-18 | R31: 08-006-0021 | U31: ИК ЗМР РТ | V31: оперативное управление
B32: Итого: | L32: =L17+L23+L24+L25+L26+L27+L28+L29+L30+L31 -> 17546.06 | O32: =O17+O23+O24+O25+O26+O27+O28+O29+O30+O31 -> 7249.35
B34: Руководитель | C34: ____________ ___________________ | G34: тел. | H34: ___________ | K34: "______"________20__ г.
C35: мп (подпись) (Ф.И.О) | H35: (телефон)
B37: Главный бухгалтер | C37: ____________ ___________________ | G37: тел. | H37: ___________ | K37: "______"________20__ г.
C38: (подпись) (Ф.И.О) | H38: (телефон)
B40: Адрес электронной почты:

Sheet Раздел 2.ДИ
A2: Раздел 2.Движимое имущество
A4: № п/п | B4: Наименование имущества, номер идентификаци объекта | C4: Инвентарный номер | D4: Наименование и характеристика объекта | E4: Местонахождение (адрес) | F4: Количество, шт. | G4: Год ввода (приобретения) | H4: Первоначально-восстановительная стоимость тыс. руб. | I4: Износ | K4: Остаточная стоимость тыс.руб. | L4: Возникновение права муниципальной собственности | N4: Прекращение права муниципальной собственности | P4: Наименование правообладатель муниципального недвижимого имущества (согласно Уставу) | Q4: Право обладания имуществом (оепартивное управление, безвозмездное пользование) | R4: Сведения об установленных ограничениях (обременениях) с указанием основания и даты их возникновения и прекращения
I5: % | J5: тыс.руб.
L6: дата документа | M6: номер и наименование документа | N6: дата документа | O6: номер и наименование документа
A7: 1 | B7: 2 | C7: 3 | D7: 4 | E7: 5 | F7: 6 | G7: 7 | H7: 8 | I7: 9 | J7: 10 | K7: 11 | L7: 12 | M7: 13 | N7: 14 | O7: 15 | P7: 16 | Q7: 17 | R7: 18
B8: 1.2. Особо ценное движимое имущество *
A9: 1 | C9: 101040000104848 | D9: 3D принтер | E9: г.Зеленодольск, ул.Космонатов, д.13 | F9: 1 | G9: 31.07.2015 | H9: 66.40 | I9: 20.00 | J9: 35.20 | K9: =H9-J9 -> 31.20 | L9: 2008-02-18 | M9: 08-006-0021 | P9: ИК ЗМР РТ | Q9: оперативное управление
A10: 2 | C10: 1010400001000914 | D10: 3D принтер PICASO Desinger X | E10: г.Зеленодольск, ул.Космонатов, д.13 | F10: 1 | G10: 14.12.2018 | H10: 119.90 | I10: 100.00 | J10: 47.90 | K10: =H10-J10 -> 72.00 | L10: 2008-02-18 | M10: 08-006-0021 | P10: ИК ЗМР РТ | Q10: оперативное управление
A11: 3 | C11: 101040000133961 | D11: Lego Конструктор Education Mindsorms EV3 расширенный набор (базовый набор - 2 шт.) | E11: г.Зеленодольск, ул.Космонатов, д.13 | F11: 1 | G11: 31.05.2017 | H11: 86.80 | I11: 63.33 | J11: 86.80 | K11: 0.00 | L11: 2008-02-18 | M11: 08-006-0021 | P11: ИК ЗМР РТ | Q11: оперативное управление
A12: =A11+1 -> 4 | C12: 163303520 | D12: Аппаратно-прогркомплекс:ппроекторhitachi.интрект.доскаhitach.документ-камераcp135крепл-кабель-по hecc-kbn- ЧШЧ | E12: г.Зеленодольск, ул.Космонатов, д.13 | F12: 1 | G12: 31.12.2012 | H12: 116.10 | I12: 41.67 | J12: 116.10 | K12: 0.00 | L12: 2008-02-18 | M12: 08-006-0021 | P12: ИК ЗМР РТ | Q12: оперативное управление
A13: =A12+1 -> 5 | C13: 116303155 | D13: Видеокамера поворотная Sony SRG-120DH PTZ | E13: г.Зеленодольск, ул.Космонатов, д.13 | F13: 1 | G13: 31.10.2014 | H13: 98.10 | I13: 100.00 | J13: 98.10 | K13: 0.00 | L13: 2008-02-18 | M13: 08-006-0021 | P13: ИК ЗМР РТ | Q13: оперативное управление
A14: 6 | C14: 116303169 | D14: Видеопанель NEC MultiSync X462 UN | E14: г.Зеленодольск, ул.Космонатов, д.13 | F14: 1 | G14: 31.10.2014 | H14: 191.40 | I14: 100.00 | J14: 191.40 | K14: 0.00 | L14: 2008-02-18 | M14: 08-006-0021 | P14: ИК ЗМР РТ | Q14: оперативное управление
A15: 7 | C15: 116303174 | D15: Видеопанель NEC MultiSync X462 UN | E15: г.Зеленодольск, ул.Космонатов, д.13 | F15: 1 | G15: 31.10.2014 | H15: 191.40 | I15: 100.00 | J15: 191.40 | K15: 0.00 | L15: 2008-02-18 | M15: 08-006-0021 | P15: ИК ЗМР РТ | Q15: оперативное управление
A16: 8 | C16: 116303177 | D16: Видеопанель NEC MultiSync X462 UN | E16: г.Зеленодольск, ул.Космонатов, д.13 | F16: 1 | G16: 31.10.2014 | H16: 191.40 | I16: 100.00 | J16: 191.40 | K16: 0.00 | L16: 2008-02-18 | M16: 08-006-0021 | P16: ИК ЗМР РТ | Q16: оперативное управление
A17: 9 | C17: 116303178 | D17: Видеопанель NEC MultiSync X462 UN | E17: г.Зеленодольск, ул.Космонатов, д.13 | F17: 1 | G17: 31.10.2014 | H17: 191.40 | I17: 100.00 | J17: 191.40 | K17: 0.00 | L17: 2008-02-18 | M17: 08-006-0021 | P17: ИК ЗМР РТ | Q17: оперативное управление
A18: 10 | C18: 116303170 | D18: Видеопанель NEC MultiSync X462 UN | E18: г.Зеленодольск, ул.Космонатов, д.13 | F18: 1 | G18: 31.10.2014 | H18: 191.40 | I18: 100.00 | J18: 191.40 | K18: 0.00 | L18: 2008-02-18 | M18: 08-006-0021 | P18: ИК ЗМР РТ | Q18: оперативное управление
A19: 11 | C19: 116303173 | D19: Видеопанель NEC MultiSync X462 UN | E19: г.Зеленодольск, ул.Космонатов, д.13 | F19: 1 | G19: 31.10.2014 | H19: 191.40 | I19: 100.00 | J19: 191.40 | K19: 0.00 | L19: 2008-02-18 | M19: 08-006-0021 | P19: ИК ЗМР РТ | Q19: оперативное управление
A20: 12 | C20: 116303176 | D20: Видеопанель NEC MultiSync X462 UN | E20: г.Зеленодольск, ул.Космонатов, д.13 | F20: 1 | G20: 31.10.2014 | H20: 191.40 | I20: 100.00 | J20: 191.40 | K20: 0.00 | L20: 2008-02-18 | M20: 08-006-0021 | P20: ИК ЗМР РТ | Q20: оперативное управление
A21: 13 | C21: 116303175 | D21: Видеопанель NEC MultiSync X462 UN | E21: г.Зеленодольск, ул.Космонатов, д.13 | F21: 1 | G21: 31.10.2014 | H21: 191.40 | I21: 40.00 | J21: 191.40 | K21: 0.00 | L21: 2008-02-18 | M21: 08-006-0021 | P21: ИК ЗМР РТ | Q21: оперативное управление
A22: 14 | C22: 116303172 | D22: Видеопанель NEC MultiSync X462 UN | E22: г.Зеленодольск, ул.Космонатов, д.13 | F22: 1 | G22: 31.10.2014 | H22: 191.40 | I22: 40.00 | J22: 191.40 | K22: 0.00 | L22: 2008-02-18 | M22: 08-006-0021 | P22: ИК ЗМР РТ | Q22: оперативное управление
A23: 15 | C23: 116303171 | D23: Видеопанель NEC MultiSync X462 UN | E23: г.Зеленодольск, ул.Космонатов, д.13 | F23: 1 | G23: 31.10.2014 | H23: 191.40 | I23: 100.00 | J23: 191.40 | K23: 0.00 | L23: 2008-02-18 | M23: 08-006-0021 | P23: ИК ЗМР РТ | Q23: оперативное управление
A24: 16 | C24: 116303154 | D24: Групповая система HD BKC Sony PCS - XG77S | E24: г.Зеленодольск, ул.Космонатов, д.13 | F24: 1 | G24: 31.10.2014 | H24: 151.20 | I24: 100.00 | J24: 151.20 | K24: 0.00 | L24: 2008-02-18 | M24: 08-006-0021 | P24: ИК ЗМР РТ | Q24: оперативное управление
A25: 17 | C25: 101040000104874 | D25: Интекрактивная доска SMART BOARD SB480 ДИАГ.77 | E25: г.Зеленодольск, ул.Космонатов, д.13 | F25: 1 | G25: 30.09.2015 | H25: 68.70 | I25: 100.00 | J25: 68.70 | K25: 0.00 | L25: 2008-02-18 | M25: 08-006-0021 | P25: ИК ЗМР РТ | Q25: оперативное управление
A26: 18 | C26: 101040000104875 | D26: Интекрактивная доска SMART BOARD SB480 ДИАГ.77 | E26: г.Зеленодольск, ул.Космонатов, д.13 | F26: 1 | G26: 30.09.2015 | H26: 68.70 | I26: 100.00 | J26: 68.70 | K26: 0.00 | L26: 2008-02-18 | M26: 08-006-0021 | P26: ИК ЗМР РТ | Q26: оперативное управление
A27: 19 | C27: 116303681 | D27: Интерактивная доска Panaboard UB-T780BP | E27: г.Зеленодольск, ул.Космонатов, д.13 | F27: 1 | G27: 30.09.2011 | H27: 63.20 | I27: 100.00 | J27: 63.20 | K27: 0.00 | L27: 2008-02-18 | M27: 08-006-0021 | P27: ИК ЗМР РТ | Q27: оперативное управление
A28: 20 | C28: 116303674 | D28: Интерактивная доска Panaboard UB-T780BP | E28: г.Зеленодольск, ул.Космонатов, д.13 | F28: 1 | G28: 31.10.2011 | H28: 63.20 | I28: 100.00 | J28: 63.20 | K28: 0.00 | L28: 2008-02-18 | M28: 08-006-0021 | P28: ИК ЗМР РТ | Q28: оперативное управление
A29: 21 | C29: 116303656 | D29: Интерактивная доска UB-T781G77 | E29: г.Зеленодольск, ул.Космонатов, д.13 | F29: 1 | G29: 31.12.2011 | H29: 60.20 | I29: 100.00 | J29: 60.20 | K29: 0.00 | L29: 2008-02-18 | M29: 08-006-0021 | P29: ИК ЗМР РТ | Q29: оперативное управление
A30: 22 | C30: 116303157 | D30: Интерактивная трибуна для докладчика Smart-One PRO 15 | E30: г.Зеленодольск, ул.Космонатов, д.13 | F30: 1 | G30: 31.10.2014 | H30: 199.40 | I30: 100.00 | J30: 199.40 | K30: 0.00 | L30: 2008-02-18 | M30: 08-006-0021 | P30: ИК ЗМР РТ | Q30: оперативное управление
A31: 23 | C31: 1010400001001036 | D31: Интерактивный комплекс TEACHTOUCH UHD (интерактив.сенсор.панель+прикладное ПО+спец.ПО+инсталяция всего оборудования) | E31: г.Зеленодольск, ул.Космонатов, д.13 | F31: 1 | G31: 19.12.2019 | H31: 403.40 | I31: 35.00 | J31: 134.40 | K31: 269.00 | L31: 2008-02-18 | M31: 08-006-0021 | P31: ИК ЗМР РТ | Q31: оперативное управление
A32: 24 | C32: 116303631 | D32: Интерактивный комплект DualBoard | E32: г.Зеленодольск, ул.Космонатов, д.13 | F32: 1 | G32: 30.11.2011 | H32: 57.30 | I32: 100.00 | J32: 57.30 | K32: 0.00 | L32: 2008-02-18 | M32: 08-006-0021 | P32: ИК ЗМР РТ | Q32: оперативное управление
A33: 25 | C33: 163303356 | D33: Интерактивный комплект(инектакт.доскаActivBoard378E100-иультмедиапроекторNEC M260 WS-крепление-кабель) | E33: г.Зеленодольск, ул.Космонатов, д.13 | F33: 1 | G33: 31.08.2012 | H33: 62.90 | I33: 100.00 | J33: 62.90 | K33: 0.00 | L33: 2008-02-18 | M33: 08-006-0021 | P33: ИК ЗМР РТ | Q33: оперативное управление
A34: 26 | C34: 1010400001000896 | D34: Интерактивный комплект:сенсорная интерактивная доска SMART Board 480- короткофокусный проектор Smart-настенно-потолочное крепление-кабель | E34: г.Зеленодольск, ул.Космонатов, д.13 | F34: 1 | G34: 07.12.2018 | H34: 69.20 | I34: 100.00 | J34: 69.20 | K34: 0.00 | L34: 2008-02-18 | M34: 08-006-0021 | P34: ИК ЗМР РТ | Q34: оперативное управление
A35: 27 | C35: 1010400001000895 | D35: Интерактивный комплект:сенсорная интерактивная доска SMART Board 480- короткофокусный проектор Smart-настенно-потолочное крепление-кабель | E35: г.Зеленодольск, ул.Космонатов, д.13 | F35: 1 | G35: 07.12.2018 | H35: 69.20 | I35: 100.00 | J35: 69.20 | K35: 0.00 | L35: 2008-02-18 | M35: 08-006-0021 | P35: ИК ЗМР РТ | Q35: оперативное управление
A36: 28 | C36: 1010400001000897 | D36: Интерактивный комплект:сенсорная интерактивная доска SMART Board 480- короткофокусный проектор Smart-настенно-потолочное крепление-кабель | E36: г.Зеленодольск, ул.Космонатов, д.13 | F36: 1 | G36: 07.12.2018 | H36: 69.20 | I36: 100.00 | J36: 69.20 | K36: 0.00 | L36: 2008-02-18 | M36: 08-006-0021 | P36: ИК ЗМР РТ | Q36: оперативное управление
A37: 29 | C37: 1010400001000898 | D37: Интерактивный комплект:сенсорная интерактивная доска SMART Board 480- короткофокусный проектор Smart-настенно-потолочное крепление-кабель | E37: г.Зеленодольск, ул.Космонатов, д.13 | F37: 1 | G37: 07.12.2018 | H37: 69.20 | I37: 100.00 | J37: 69.20 | K37: 0.00 | L37: 2008-02-18 | M37: 08-006-0021 | P37: ИК ЗМР РТ | Q37: оперативное управление
A38: 30 | C38: 10104000104917 | D38: Интерактивный лазерный тир | E38: г.Зеленодольск, ул.Космонатов, д.13 | F38: 1 | G38: 31.07.2015 | H38: 132.80 | I38: 100.00 | J38: 132.80 | K38: 0.00 | L38: 2008-02-18 | M38: 08-006-0021 | P38: ИК ЗМР РТ | Q38: оперативное управление
A39: 31 | C39: 163303774 | D39: Интерактивный микроскоп ProScope HR Deluxe Kit(1х-10х-200х-1-3Mn) | E39: г.Зеленодольск, ул.Космонатов, д.13 | F39: 1 | G39: 31.12.2012 | H39: 70.10 | I39: 100.00 | J39: 70.10 | K39: 0.00 | L39: 2008-02-18 | M39: 08-006-0021 | P39: ИК ЗМР РТ | Q39: оперативное управление
A40: 32 | C40: 163303399 | D40: Интерактивный стол Smart230i | E40: г.Зеленодольск, ул.Космонатов, д.13 | F40: 1 | G40: 31.10.2012 | H40: 298.50 | I40: 100.00 | J40: 298.50 | K40: 0.00 | L40: 2008-02-18 | M40: 08-006-0021 | P40: ИК ЗМР РТ | Q40: оперативное управление
A41: 33 | C41: 000000322 | D41: Информат(терминал для электронных карт) | E41: г.Зеленодольск, ул.Космонатов, д.13 | F41: 1 | G41: 03.04.2014 | H41: 377.00 | I41: 100.00 | J41: 377.00 | K41: 0.00 | L41: 2008-02-18 | M41: 08-006-0021 | P41: ИК ЗМР РТ | Q41: оперативное управление
A42: 34 | C42: 163303576 | D42: Комплект лабораторного оборудования -демонтрсационный -Физика- с руководством для учителя- | E42: г.Зеленодольск, ул.Космонатов, д.13 | F42: 1 | G42: 31.12.2012 | H42: 70.00 | I42: 100.00 | J42: 70.00 | K42: 0.00 | L42: 2008-02-18 | M42: 08-006-0021 | P42: ИК ЗМР РТ | Q42: оперативное управление
A43: 35 | C43: 163303714 | D43: Комплект специализированных информационных источников по физике(инструментарий учител.) | E43: г.Зеленодольск, ул.Космонатов, д.13 | F43: 1 | G43: 31.12.2012 | H43: 58.10 | I43: 100.00 | J43: 58.10 | K43: 0.00 | L43: 2008-02-18 | M43: 08-006-0021 | P43: ИК ЗМР РТ | Q43: оперативное управление
A44: 36 | C44: 116303153 | D44: Контролер автонаведения камер на выступающего К1-1Е-1RS v.DIS-SONY | E44: г.Зеленодольск, ул.Космонатов, д.13 | F44: 1 | G44: 31.10.2014 | H44: 57.50 | I44: 100.00 | J44: 57.50 | K44: 0.00 | L44: 2008-02-18 | M44: 08-006-0021 | P44: ИК ЗМР РТ | Q44: оперативное управление
A45: 37 | C45: 163304030 | D45: Лингаф.кабинет(раб.место преп-ПО преп.-раб.место уч.-14шт-ПО ученика-моб.класс(ICLab15+1)сист.видеоконференции-1шт- | E45: г.Зеленодольск, ул.Космонатов, д.13 | F45: 1 | G45: 31.12.2012 | H45: 1708.90 | I45: 100.00 | J45: 1708.90 | K45: 0.00 | L45: 2008-02-18 | M45: 08-006-0021 | P45: ИК ЗМР РТ | Q45: оперативное управление
A46: 38 | C46: 163304030 | D46: Мобильное устройство Touch Kallista(комп.класс)чемодан | E46: г.Зеленодольск, ул.Космонатов, д.13 | F46: 1 | G46: 31.12.2013 | H46: 250.00 | I46: 100.00 | J46: 250.00 | K46: 0.00 | L46: 2008-02-18 | M46: 08-006-0021 | P46: ИК ЗМР РТ | Q46: оперативное управление
A47: 39 | C47: 163303579 | D47: Мобильный класс компюьтерный класс ICLab(1+15) | E47: г.Зеленодольск, ул.Космонатов, д.13 | F47: 1 | G47: 31.12.2012 | H47: 594.20 | I47: 100.00 | J47: 594.20 | K47: 0.00 | L47: 2008-02-18 | M47: 08-006-0021 | P47: ИК ЗМР РТ | Q47: оперативное управление
A48: 40 | C48: 116303189 | D48: Мобильный компьютерный класс AgvaRel 31-Aquarius Cmp NS735-ПО управления классом-Точка доступа | E48: г.Зеленодольск, ул.Космонатов, д.13 | F48: 1 | G48: 31.10.2014 | H48: 694.90 | I48: 100.00 | J48: 694.90 | K48: 0.00 | L48: 2008-02-18 | M48: 08-006-0021 | P48: ИК ЗМР РТ | Q48: оперативное управление
A49: 41 | C49: 163303344 | D49: Моб.комп.класс(комьютер учен.-15+1 с тележкой) | E49: г.Зеленодольск, ул.Космонатов, д.13 | F49: 1 | G49: 31.08.2012 | H49: 656.70 | I49: 100.00 | J49: 656.70 | K49: 0.00 | L49: 2008-02-18 | M49: 08-006-0021 | P49: ИК ЗМР РТ | Q49: оперативное управление
A50: 42 | C50: 163303343 | D50: Моб.комп.класс(комьютер учен.-30шт-тележка-лабдиск-стереомикроскоп-набор лаб.оборуд.СККЗ-RedCat) | E50: г.Зеленодольск, ул.Космонатов, д.13 | F50: 1 | G50: 31.08.2012 | H50: 700.00 | I50: 63.33 | J50: 506.00 | K50: 194.00 | L50: 2008-02-18 | M50: 08-006-0021 | P50: ИК ЗМР РТ | Q50: оперативное управление
A51: 43 | C51: 163304031 | D51: Ноутбук 13-3 Apple MacBook Pro(в составе мобильного класса)чемодан | E51: г.Зеленодольск, ул.Космонатов, д.13 | F51: 1 | G51: 31.12.2013 | H51: 55.00 | I51: 100.00 | J51: 55.00 | K51: 0.00 | L51: 2008-02-18 | M51: 08-006-0021 | P51: ИК ЗМР РТ | Q51: оперативное управление
A52: 44 | C52: 163303787 | D52: Программно-лабораторный комплекс:интеракт.доскаHitachiFX-77-мульт.проекторHitachiСP-X2515-документ-камераMimioView-ПО-крепл.потолочное-кабель | E52: г.Зеленодольск, ул.Космонатов, д.13 | F52: 1 | G52: 02.02.2013 | H52: 123.00 | I52: 100.00 | J52: 123.00 | K52: 0.00 | L52: 2008-02-18 | M52: 08-006-0021 | P52: ИК ЗМР РТ | Q52: оперативное управление
A53: 45 | C53: 116303163 | D53: Профессиональный медиаплеер Full HD Spinetix HMP 200 | E53: г.Зеленодольск, ул.Космонатов, д.13 | F53: 1 | G53: 31.10.2014 | H53: 68.40 | I53: 100.00 | J53: 68.40 | K53: 0.00 | L53: 2008-02-18 | M53: 08-006-0021 | P53: ИК ЗМР РТ | Q53: оперативное управление
A54: 46 | C54: 116303159 | D54: Профессиональный медиаплеер Full HD Spinetix HMP 200 | E54: г.Зеленодольск, ул.Космонатов, д.13 | F54: 1 | G54: 31.10.2014 | H54: 68.40 | I54: 100.00 | J54: 68.40 | K54: 0.00 | L54: 2008-02-18 | M54: 08-006-0021 | P54: ИК ЗМР РТ | Q54: оперативное управление
A55: 47 | C55: 116303158 | D55: Профессиональный медиаплеер Full HD Spinetix HMP 200 | E55: г.Зеленодольск, ул.Космонатов, д.13 | F55: 1 | G55: 31.10.2014 | H55: 68.40 | I55: 100.00 | J55: 68.40 | K55: 0.00 | L55: 2008-02-18 | M55: 08-006-0021 | P55: ИК ЗМР РТ | Q55: оперативное управление
A56: 48 | C56: 116303166 | D56: Профессиональный медиаплеер Full HD Spinetix HMP 200 | E56: г.Зеленодольск, ул.Космонатов, д.13 | F56: 1 | G56: 31.10.2014 | H56: 68.40 | I56: 100.00 | J56: 68.40 | K56: 0.00 | L56: 2008-02-18 | M56: 08-006-0021 | P56: ИК ЗМР РТ | Q56: оперативное управление
A57: 49 | C57: 116303167 | D57: Профессиональный медиаплеер Full HD Spinetix HMP 200 | E57: г.Зеленодольск, ул.Космонатов, д.13 | F57: 1 | G57: 31.10.2014 | H57: 68.40 | I57: 100.00 | J57: 68.40 | K57: 0.00 | L57: 2008-02-18 | M57: 08-006-0021 | P57: ИК ЗМР РТ | Q57: оперативное управление
A58: 50 | C58: 116303162 | D58: Профессиональный медиаплеер Full HD Spinetix HMP 200 | E58: г.Зеленодольск, ул.Космонатов, д.13 | F58: 1 | G58: 31.10.2014 | H58: 68.40 | I58: 100.00 | J58: 68.40 | K58: 0.00 | L58: 2008-02-18 | M58: 08-006-0021 | P58: ИК ЗМР РТ | Q58: оперативное управление
A59: 51 | C59: 116303164 | D59: Профессиональный медиаплеер Full HD Spinetix HMP 200 | E59: г.Зеленодольск, ул.Космонатов, д.13 | F59: 1 | G59: 31.10.2014 | H59: 68.40 | I59: 100.00 | J59: 68.40 | K59: 0.00 | L59: 2008-02-18 | M59: 08-006-0021 | P59: ИК ЗМР РТ | Q59: оперативное управление
A60: 52 | C60: 116303161 | D60: Профессиональный медиаплеер Full HD Spinetix HMP 200 | E60: г.Зеленодольск, ул.Космонатов, д.13 | F60: 1 | G60: 31.10.2014 | H60: 68.40 | I60: 100.00 | J60: 68.40 | K60: 0.00 | L60: 2008-02-18 | M60: 08-006-0021 | P60: ИК ЗМР РТ | Q60: оперативное управление
A61: 53 | C61: 116303160 | D61: Профессиональный медиаплеер Full HD Spinetix HMP 200 | E61: г.Зеленодольск, ул.Космонатов, д.13 | F61: 1 | G61: 31.10.2014 | H61: 68.40 | I61: 100.00 | J61: 68.40 | K61: 0.00 | L61: 2008-02-18 | M61: 08-006-0021 | P61: ИК ЗМР РТ | Q61: оперативное управление
A62: 54 | C62: 116303165 | D62: Профессиональный медиаплеер Full HD Spinetix HMP 200 | E62: г.Зеленодольск, ул.Космонатов, д.13 | F62: 1 | G62: 31.10.2014 | H62: 68.40 | I62: 100.00 | J62: 68.40 | K62: 0.00 | L62: 2008-02-18 | M62: 08-006-0021 | P62: ИК ЗМР РТ | Q62: оперативное управление
A63: 55 | C63: 1010400001000926 | D63: Сканер 3D | E63: г.Зеленодольск, ул.Космонатов, д.13 | F63: 1 | G63: 17.12.2018 | H63: 98.00 | I63: 100.00 | J63: 98.00 | K63: 0.00 | L63: 2008-02-18 | M63: 08-006-0021 | P63: ИК ЗМР РТ | Q63: оперативное управление
A64: 56 | C64: 101040000104934 | D64: Универсальная интерактивная система УИС-1 | E64: г.Зеленодольск, ул.Космонатов, д.13 | F64: 1 | G64: 18.03.2015 | H64: 217.20 | I64: 100.00 | J64: 217.20 | K64: 0.00 | L64: 2008-02-18 | M64: 08-006-0021 | P64: ИК ЗМР РТ | Q64: оперативное управление
A65: 57 | C65: 116303151 | D65: Универсальный пульт DC 59820 P с разъемом XLR | E65: г.Зеленодольск, ул.Космонатов, д.13 | F65: 1 | G65: 31.10.2014 | H65: 85.30 | I65: 100.00 | J65: 85.30 | K65: 0.00 | L65: 2008-02-18 | M65: 08-006-0021 | P65: ИК ЗМР РТ | Q65: оперативное управление
A66: 58 | C66: 163303655 | D66: Устройство измерения и обработки данных | E66: г.Зеленодольск, ул.Космонатов, д.13 | F66: 1 | G66: 31.12.2012 | H66: 41.80 | I66: 100.00 | J66: 41.80 | K66: 0.00 | L66: 2008-02-18 | M66: 08-006-0021 | P66: ИК ЗМР РТ | Q66: оперативное управление
A67: 59 | C67: 163304010 | D67: Холодильная камера(1960х1960х2200) | E67: г.Зеленодольск, ул.Космонатов, д.13 | F67: 1 | G67: 31.12.2013 | H67: 52.20 | I67: 100.00 | J67: 52.20 | K67: 0.00 | L67: 2008-02-18 | M67: 08-006-0021 | P67: ИК ЗМР РТ | Q67: оперативное управление
A68: 60 | C68: 116303190 | D68: Цифровое устройство вывода с электронных форм RiSo MZ 1070 | E68: г.Зеленодольск, ул.Космонатов, д.13 | F68: 1 | G68: 31.10.2014 | H68: 630.90 | I68: 100.00 | J68: 630.90 | K68: 0.00 | L68: 2008-02-18 | M68: 08-006-0021 | P68: ИК ЗМР РТ | Q68: оперативное управление
A69: 61 | C69: 163304107 | D69: Швейная Brother PR -650e | E69: г.Зеленодольск, ул.Космонатов, д.13 | F69: 1 | G69: 31.07.2013 | H69: 181.50 | I69: 100.00 | J69: 181.50 | K69: 0.00 | L69: 2008-02-18 | M69: 08-006-0021 | P69: ИК ЗМР РТ | Q69: оперативное управление
A70: 62 | C70: 163303798 | D70: Экран с электроприводом Premier 610x460 | E70: г.Зеленодольск, ул.Космонатов, д.13 | F70: 1 | G70: 30.06.2013 | H70: 129.10 | I70: 100.00 | J70: 129.10 | K70: 0.00 | L70: 2008-02-18 | M70: 08-006-0021 | P70: ИК ЗМР РТ | Q70: оперативное управление
A71: 63 | C71: 163303941 | D71: Электрическая печь Welte WT45 с прогр.регулятором | E71: г.Зеленодольск, ул.Космонатов, д.13 | F71: 1 | G71: 30.11.2013 | H71: 78.90 | I71: 100.00 | J71: 78.90 | K71: 0.00 | L71: 2008-02-18 | M71: 08-006-0021 | P71: ИК ЗМР РТ | Q71: оперативное управление
A72: 64 | C72: 163303942 | D72: Электрическая печь Welte WT45 с прогр.регулятором | E72: г.Зеленодольск, ул.Космонатов, д.13 | F72: 1 | G72: 30.11.2013 | H72: 78.90 | I72: 100.00 | J72: 78.90 | K72: 0.00 | L72: 2008-02-18 | M72: 08-006-0021 | P72: ИК ЗМР РТ | Q72: оперативное управление
A73: 65 | C73: 116303162 | D73: Демонтрационный кормплект -Архимед- | E73: г.Зеленодольск, ул.Космонатов, д.13 | F73: 1 | G73: 31/10/2014 | H73: 74.00 | I73: 100.00 | J73: 27.30 | K73: 46.70 | L73: 2008-02-18 | M73: 08-006-0021 | P73: ИК ЗМР РТ | Q73: оперативное управление
A74: 66 | C74: 116303163 | D74: Демонтрационный кормплект -Архимед- | E74: г.Зеленодольск, ул.Космонатов, д.13 | F74: 1 | G74: 31/10/2014 | H74: 74.00 | I74: 100.00 | J74: 27.30 | K74: =H74-J74 -> 46.70 | L74: 2008-02-18 | M74: 08-006-0021 | P74: ИК ЗМР РТ | Q74: оперативное управление
A75: 67 | C75: 116303164 | D75: Демонтрационный кормплект -Архимед- | E75: г.Зеленодольск, ул.Космонатов, д.13 | F75: 1 | G75: 31/10/2014 | H75: 74.00 | I75: 100.00 | J75: 27.30 | K75: 46.70 | L75: 2008-02-18 | M75: 08-006-0021 | P75: ИК ЗМР РТ | Q75: оперативное управление
A76: 68 | C76: 116303165 | D76: Диск учебник по психологии -Прогноз и профилактика проблем обучения- | E76: г.Зеленодольск, ул.Космонатов, д.13 | F76: 1 | G76: 31/10/2014 | H76: 10.30 | I76: 100.00 | J76: 10.30 | K76: 0.00 | L76: 2008-02-18 | M76: 08-006-0021 | P76: ИК ЗМР РТ | Q76: оперативное управление
A77: =A76+1 -> 69 | C77: 116303166 | D77: Комплект лабораторного оборудования -Звук и тон- | E77: г.Зеленодольск, ул.Космонатов, д.13 | F77: 1 | G77: 31/10/2014 | H77: 90.00 | I77: 100.00 | J77: 90.00 | K77: 0.00 | L77: 2008-02-18 | M77: 08-006-0021 | P77: ИК ЗМР РТ | Q77: оперативное управление
C78: 101040000133961 | D78: Lego Конструктор Education Mindsorms EV3 расширенный набор (базовый набор - 2 шт.) | E78: г.Зеленодольск, ул.Космонатов, д.13 | F78: 1 | G78: 31.05.2017 | H78: 86.30 | I78: 100.00 | J78: 86.30 | K78: 0.00 | L78: 2008-02-19 | M78: 08-006-0021 | P78: ИК ЗМР РТ | Q78: оперативное управление
A79: =A77+1 -> 70 | D79: библиотечный фонд | E79: г.Зеленодольск, ул.Космонатов, д.13 | F79: 1 | G79: 31/10/2014 | H79: 4574.00 | I79: 100.00 | J79: 4574.00 | K79: 0.00 | L79: 2008-02-18 | M79: 08-006-0021 | P79: ИК ЗМР РТ | Q79: оперативное управление
H80: =SUM(H9:H79) -> 16983.40 | J80: =SUM(J9:J79) -> 16277.10 | K80: =SUM(K9:K79) -> 706.30
B81: 1.2.1. Транспорт
B82: 1.2.2. Оборудование
B83: 1.2.3. Другие основные средства
A84: 1 | C84: 1010400001000892 | D84: 3D принтер Bizon(набор для сборки) | F84: 1 | G84: 15.10.2018 | H84: 47.00 | I84: 100.00 | J84: 47.00 | K84: 0.00 | L84: 2008-02-18 | M84: 08-006-0021 | P84: ИК ЗМР РТ | Q84: оперативное управление
A85: 2 | C85: 1010400001000893 | D85: 3D принтер Bizon(набор для сборки) | F85: 1 | G85: 15.10.2018 | H85: 47.00 | I85: 100.00 | J85: 47.00 | K85: 0.00 | L85: 2008-02-18 | M85: 08-006-0021 | P85: ИК ЗМР РТ | Q85: оперативное управление
A86: =A85+1 -> 3 | C86: 163303275 | D86: Allround Station 580 | F86: 1 | G86: 31.07.2007 | H86: 25.40 | I86: 100.00 | J86: 25.40 | K86: 0.00 | L86: 2008-02-18 | M86: 08-006-0021 | P86: ИК ЗМР РТ | Q86: оперативное управление
A87: =A86+1 -> 4 | C87: 163303355 | D87: Bhringer X1832USB-микшер-6 монов-4стерео | F87: 1 | G87: 31.08.2012 | H87: 17.10 | I87: 100.00 | J87: 17.10 | K87: 0.00 | L87: 2008-02-18 | M87: 08-006-0021 | P87: ИК ЗМР РТ | Q87: оперативное управление
A88: 5 | C88: 163303637 | D88: cканер Epson Perfection V330 | F88: 1 | G88: 31.12.2012 | H88: 3.90 | I88: 95.54 | J88: 3.90 | K88: 4.00 | L88: 2008-02-18 | M88: 08-006-0021 | P88: ИК ЗМР РТ | Q88: оперативное управление
A89: 6 | C89: 163303639 | D89: cканер Epson V33 USB 2-0 | F89: 1 | G89: 31.12.2012 | H89: 3.30 | I89: 100.00 | J89: 3.30 | K89: 0.00 | L89: 2008-02-18 | M89: 08-006-0021 | P89: ИК ЗМР РТ | Q89: оперативное управление
A90: 7 | C90: 163303640 | D90: cканер Epson V33 USB 2-0 | F90: 1 | G90: 31.12.2012 | H90: 3.30 | I90: 100.00 | J90: 3.30 | K90: 0.00 | L90: 2008-02-18 | M90: 08-006-0021 | P90: ИК ЗМР РТ | Q90: оперативное управление
A91: 8 | C91: 163303641 | D91: cканер Epson V33 USB 2-0 | F91: 1 | G91: 31.12.2012 | H91: 3.30 | I91: 100.00 | J91: 3.30 | K91: 0.00 | L91: 2008-02-18 | M91: 08-006-0021 | P91: ИК ЗМР РТ | Q91: оперативное управление
A92: =A91+1 -> 9 | C92: 163303638 | D92: cканер Epson V33 USB 2-0 | G92: 31.12.2012 | H92: 3.30 | I92: 100.00 | J92: 3.30 | K92: 0.00 | L92: 2008-02-18 | M92: 08-006-0021 | P92: ИК ЗМР РТ | Q92: оперативное управление
A93: =A92+1 -> 10 | C93: 016302962 | D93: DVD-плейер Soni DVP-NS318 | F93: 1 | G93: 30.06.2010 | H93: 6.80 | I93: 100.00 | J93: 6.80 | K93: 0.00 | L93: 2008-02-18 | M93: 08-006-0021 | P93: ИК ЗМР РТ | Q93: оперативное управление
A94: =A93+1 -> 11 | C94: 016302955 | D94: DVD-плейер SONI DVP-NS318 | F94: 1 | G94: 31.07.2010 | H94: 6.80 | I94: 100.00 | J94: 6.80 | K94: 0.00 | L94: 2008-02-18 | M94: 08-006-0021 | P94: ИК ЗМР РТ | Q94: оперативное управление
A95: 12 | C95: 1010400001000905 | D95: Lego Education на 4 ученика | F95: 1 | G95: 05.12.2018 | H95: 44.70 | I95: 100.00 | J95: 44.70 | K95: 0.00 | L95: 2008-02-18 | M95: 08-006-0021 | P95: ИК ЗМР РТ | Q95: оперативное управление
A96: 13 | C96: 1010400001000904 | D96: Lego Education на 4 ученика | F96: 1 | G96: 05.12.2018 | H96: 44.70 | I96: 100.00 | J96: 44.70 | K96: 0.00 | L96: 2008-02-18 | M96: 08-006-0021 | P96: ИК ЗМР РТ | Q96: оперативное управление
A97: 14 | C97: 1010400001000906 | D97: Lego Education на 4 ученика | F97: 1 | G97: 05.12.2018 | H97: 44.70 | I97: 100.00 | J97: 44.70 | K97: 0.00 | L97: 2008-02-18 | M97: 08-006-0021 | P97: ИК ЗМР РТ | Q97: оперативное управление
A98: 15 | C98: 1010400001000907 | D98: Lego Education на 4 ученика | F98: 1 | G98: 05.12.2018 | H98: 44.70 | I98: 100.00 | J98: 44.70 | K98: 0.00 | L98: 2008-02-18 | M98: 08-006-0021 | P98: ИК ЗМР РТ | Q98: оперативное управление
A99: 16 | C99: 1010400001000908 | D99: Lego Education на 4 ученика | F99: 1 | G99: 05.12.2018 | H99: 44.70 | I99: 100.00 | J99: 44.70 | K99: 0.00 | L99: 2008-02-18 | M99: 08-006-0021 | P99: ИК ЗМР РТ | Q99: оперативное управление
A100: 17 | C100: 013801461 | D100: Mimio XI Интерактивное устройство | F100: 1 | G100: 31.10.2007 | H100: 29.90 | I100: 100.00 | J100: 29.90 | K100: 0.00 | L100: 2008-02-18 | M100: 08-006-0021 | P100: ИК ЗМР РТ | Q100: оперативное управление
A101: 18 | C101: 101040000104873 | D101: MУЛЬТИМЕДИЙНЫЙ ПРОЕКТОР EPSON EB-X18 | F101: 1 | G101: 30.09.2015 | H101: 39.90 | I101: 100.00 | J101: 39.90 | K101: 0.00 | L101: 2008-02-18 | M101: 08-006-0021 | P101: ИК ЗМР РТ | Q101: оперативное управление
A102: 19 | C102: 163303275 | D102: Power Run 4.0 | F102: 1 | G102: 31.12.2007 | H102: 20.40 | I102: 100.00 | J102: 20.40 | K102: 0.00 | L102: 2008-02-18 | M102: 08-006-0021 | P102: ИК ЗМР РТ | Q102: оперативное управление
A103: 20 | C103: 163303275 | D103: Power Tower 180 | F103: 1 | G103: 31.01.2007 | H103: 6.50 | I103: 100.00 | J103: 6.50 | K103: 0.00 | L103: 2008-02-18 | M103: 08-006-0021 | P103: ИК ЗМР РТ | Q103: оперативное управление
A104: 21 | C104: 101040000104630 | D104: Автоматизированное рабочее место№1 | F104: 1 | G104: 02.09.2015 | H104: 19.40 | I104: 100.00 | J104: 19.40 | K104: 0.00 | L104: 2008-02-18 | M104: 08-006-0021 | P104: ИК ЗМР РТ | Q104: оперативное управление
A105: 22 | C105: 101040000100784 | D105: Автоматизированное рабочее место №2 | F105: 1 | G105: 02.09.2015 | H105: 18.60 | I105: 100.00 | J105: 18.60 | K105: 0.00 | L105: 2008-02-18 | M105: 08-006-0021 | P105: ИК ЗМР РТ | Q105: оперативное управление
A106: 23 | C106: 101040000100786 | D106: Автоматизированное рабочее место№2 | F106: 1 | G106: 02.09.2015 | H106: 18.60 | I106: 100.00 | J106: 18.60 | K106: 0.00 | L106: 2008-02-18 | M106: 08-006-0021 | P106: ИК ЗМР РТ | Q106: оперативное управление
A107: 24 | C107: 1010400001000787 | D107: Автоматизированное рабочее место№2 | F107: 1 | G107: 02.09.2015 | H107: 18.60 | I107: 100.00 | J107: 18.60 | K107: 0.00 | L107: 2008-02-18 | M107: 08-006-0021 | P107: ИК ЗМР РТ | Q107: оперативное управление
A108: 25 | C108: 101040000100785 | D108: Автоматизированное рабочее место№2 | F108: 1 | G108: 02.09.2015 | H108: 18.60 | I108: 100.00 | J108: 18.60 | K108: 0.00 | L108: 2008-02-18 | M108: 08-006-0021 | P108: ИК ЗМР РТ | Q108: оперативное управление
A109: 26 | C109: 016302652 | D109: Автомат калашникова ММГ АК-7 НМ | F109: 1 | G109: 30.11.2007 | H109: 6.80 | I109: 100.00 | J109: 6.80 | K109: 0.00 | L109: 2008-02-18 | M109: 08-006-0021 | P109: ИК ЗМР РТ | Q109: оперативное управление
A110: 27 | C110: 163303997 | D110: Адаптер с программным обеспечением | F110: 1 | G110: 20.12.2013 | H110: 5.90 | I110: 100.00 | J110: 5.90 | K110: 0.00 | L110: 2008-02-18 | M110: 08-006-0021 | P110: ИК ЗМР РТ | Q110: оперативное управление
A111: 28 | C111: 163303750 | D111: Аквадистиллятор(дистилятор для воды) | F111: 1 | G111: 31.12.2012 | H111: 27.70 | I111: 100.00 | J111: 27.70 | K111: 0.00 | L111: 2008-02-18 | M111: 08-006-0021 | P111: ИК ЗМР РТ | Q111: оперативное управление
A112: 29 | C112: 01380166 | D112: Акустическая система ASR SA-512 C(колонки) | F112: 1 | G112: 31.12.2007 | H112: 17.70 | I112: 100.00 | J112: 17.70 | K112: 0.00 | L112: 2008-02-18 | M112: 08-006-0021 | P112: ИК ЗМР РТ | Q112: оперативное управление
A113: 30 | C113: 01380167 | D113: Акустическая система ASR SA-512 C(колонки) | F113: 1 | G113: 31.12.2007 | H113: 17.70 | I113: 100.00 | J113: 17.70 | K113: 0.00 | L113: 2008-02-18 | M113: 08-006-0021 | P113: ИК ЗМР РТ | Q113: оперативное управление
A114: 31 | C114: 016303101 | D114: Акустическая система Epson EB-X8 | F114: 1 | G114: 31.10.2010 | H114: 32.00 | I114: 100.00 | J114: 32.00 | K114: 0.00 | L114: 2008-02-18 | M114: 08-006-0021 | P114: ИК ЗМР РТ | Q114: оперативное управление
A115: 32 | C115: 10104000104921 | D115: Акустическая система MIKROLAB SOLO2 | F115: 1 | G115: 13.10.2015 | H115: 3.00 | I115: 100.00 | J115: 3.00 | K115: 0.00 | L115: 2008-02-18 | M115: 08-006-0021 | P115: ИК ЗМР РТ | Q115: оперативное управление
A116: 33 | C116: 116303188 | D116: Акустическая система NEC SP-RM1 | F116: 1 | G116: 31.10.2014 | H116: 9.00 | I116: 100.00 | J116: 9.00 | K116: 0.00 | L116: 2008-02-18 | M116: 08-006-0021 | P116: ИК ЗМР РТ | Q116: оперативное управление
A117: 34 | C117: 116303180 | D117: Акустическая система NEC SP-RM1 | F117: 1 | G117: 31.10.2014 | H117: 9.00 | I117: 100.00 | J117: 9.00 | K117: 0.00 | L117: 2008-02-18 | M117: 08-006-0021 | P117: ИК ЗМР РТ | Q117: оперативное управление
A118: 35 | C118: 116303186 | D118: Акустическая система NEC SP-RM1 | F118: 1 | G118: 31.10.2014 | H118: 9.00 | I118: 100.00 | J118: 9.00 | K118: 0.00 | L118: 2008-02-18 | M118: 08-006-0021 | P118: ИК ЗМР РТ | Q118: оперативное управление
A119: 36 | C119: 116303187 | D119: Акустическая система NEC SP-RM1 | F119: 1 | G119: 31.10.2014 | H119: 9.00 | I119: 100.00 | J119: 9.00 | K119: 0.00 | L119: 2008-02-18 | M119: 08-006-0021 | P119: ИК ЗМР РТ | Q119: оперативное управление
A120: 37 | C120: 116303181 | D120: Акустическая система NEC SP-RM1 | F120: 1 | G120: 31.10.2014 | H120: 9.00 | I120: 100.00 | J120: 9.00 | K120: 0.00 | L120: 2008-02-18 | M120: 08-006-0021 | P120: ИК ЗМР РТ | Q120: оперативное управление
A121: 38 | C121: 116303182 | D121: Акустическая система NEC SP-RM1 | F121: 1 | G121: 31.10.2014 | H121: 9.00 | I121: 100.00 | J121: 9.00 | K121: 0.00 | L121: 2008-02-18 | M121: 08-006-0021 | P121: ИК ЗМР РТ | Q121: оперативное управление
A122: 39 | C122: 116303184 | D122: Акустическая система NEC SP-RM1 | F122: 1 | G122: 31.10.2014 | H122: 9.00 | I122: 100.00 | J122: 9.00 | K122: 0.00 | L122: 2008-02-18 | M122: 08-006-0021 | P122: ИК ЗМР РТ | Q122: оперативное управление
A123: 40 | C123: 116303183 | D123: Акустическая система NEC SP-RM1 | F123: 1 | G123: 31.10.2014 | H123: 9.00 | I123: 100.00 | J123: 9.00 | K123: 0.00 | L123: 2008-02-18 | M123: 08-006-0021 | P123: ИК ЗМР РТ | Q123: оперативное управление
A124: 41 | C124: 116303185 | D124: Акустическая система NEC SP-RM1 | F124: 1 | G124: 31.10.2014 | H124: 9.00 | I124: 100.00 | J124: 9.00 | K124: 0.00 | L124: 2008-02-18 | M124: 08-006-0021 | P124: ИК ЗМР РТ | Q124: оперативное управление
A125: 42 | C125: 116303179 | D125: Акустическая система NEC SP-RM1 | F125: 1 | G125: 31.10.2014 | H125: 9.00 | I125: 100.00 | J125: 9.00 | K125: 0.00 | L125: 2008-02-18 | M125: 08-006-0021 | P125: ИК ЗМР РТ | Q125: оперативное управление
A126: 43 | C126: 016302803 | D126: акустическая система потолочная | F126: 1 | G126: 31.12.2009 | H126: 33.30 | I126: 100.00 | J126: 33.30 | K126: 0.00 | L126: 2008-02-18 | M126: 08-006-0021 | P126: ИК ЗМР РТ | Q126: оперативное управление
A127: 44 | C127: 016302804 | D127: акустическая система потолочная | F127: 1 | G127: 31.12.2009 | H127: 33.30 | I127: 100.00 | J127: 33.30 | K127: 0.00 | L127: 2008-02-18 | M127: 08-006-0021 | P127: ИК ЗМР РТ | Q127: оперативное управление
A128: 45 | C128: 016302937 | D128: Акустическая система потолочная Epson ED | F128: 1 | G128: 30.06.2010 | H128: 33.50 | I128: 100.00 | J128: 33.50 | K128: 0.00 | L128: 2008-02-18 | M128: 08-006-0021 | P128: ИК ЗМР РТ | Q128: оперативное управление
A129: 46 | C129: 116303161 | D129: Аппарат сварочный бестрансформаторный RD-190K | F129: 1 | G129: 29.09.2014 | H129: 5.30 | I129: 100.00 | J129: 5.30 | K129: 0.00 | L129: 2008-02-18 | M129: 08-006-0021 | P129: ИК ЗМР РТ | Q129: оперативное управление
A130: 47 | C130: 1010400001000992 | D130: Базовый набор Lego Mindstorms EV3 | F130: 1 | G130: 17.05.2019 | H130: 27.10 | I130: 100.00 | J130: 27.10 | K130: 0.00 | L130: 2008-02-18 | M130: 08-006-0021 | P130: ИК ЗМР РТ | Q130: оперативное управление
A131: 48 | C131: 1010400001000996 | D131: Базовый набор Lego Mindstorms EV3 | F131: 1 | G131: 17.05.2019 | H131: 27.10 | I131: 100.00 | J131: 27.10 | K131: 0.00 | L131: 2008-02-18 | M131: 08-006-0021 | P131: ИК ЗМР РТ | Q131: оперативное управление
A132: 49 | C132: 1010400001000998 | D132: Базовый набор Lego Mindstorms EV3 | F132: 1 | G132: 17.05.2019 | H132: 27.10 | I132: 100.00 | J132: 27.10 | K132: 0.00 | L132: 2008-02-18 | M132: 08-006-0021 | P132: ИК ЗМР РТ | Q132: оперативное управление
A133: 50 | C133: 1010400001000999 | D133: Базовый набор Lego Mindstorms EV3 | F133: 1 | G133: 17.05.2019 | H133: 27.10 | I133: 100.00 | J133: 27.10 | K133: 0.00 | L133: 2008-02-18 | M133: 08-006-0021 | P133: ИК ЗМР РТ | Q133: оперативное управление
A134: 51 | C134: 1010400001000990 | D134: Базовый набор Lego Mindstorms EV3 | F134: 1 | G134: 17.05.2019 | H134: 27.10 | I134: 100.00 | J134: 27.10 | K134: 0.00 | L134: 2008-02-18 | M134: 08-006-0021 | P134: ИК ЗМР РТ | Q134: оперативное управление
A135: 52 | C135: 1010400001000994 | D135: Базовый набор Lego Mindstorms EV3 | F135: 1 | G135: 17.05.2019 | H135: 27.10 | I135: 100.00 | J135: 27.10 | K135: 0.00 | L135: 2008-02-18 | M135: 08-006-0021 | P135: ИК ЗМР РТ | Q135: оперативное управление
A136: 53 | C136: 1010400001000997 | D136: Базовый набор Lego Mindstorms EV3 | F136: 1 | G136: 17.05.2019 | H136: 27.10 | I136: 100.00 | J136: 27.10 | K136: 0.00 | L136: 2008-02-18 | M136: 08-006-0021 | P136: ИК ЗМР РТ | Q136: оперативное управление
A137: 54 | C137: 1010400001000991 | D137: Базовый набор Lego Mindstorms EV3 | F137: 1 | G137: 17.05.2019 | H137: 27.10 | I137: 100.00 | J137: 27.10 | K137: 0.00 | L137: 2008-02-18 | M137: 08-006-0021 | P137: ИК ЗМР РТ | Q137: оперативное управление
A138: 55 | C138: 1010400001000993 | D138: Базовый набор Lego Mindstorms EV3 | F138: 1 | G138: 17.05.2019 | H138: 27.10 | I138: 100.00 | J138: 27.10 | K138: 0.00 | L138: 2008-02-18 | M138: 08-006-0021 | P138: ИК ЗМР РТ | Q138: оперативное управление
A139: 56 | C139: 1010400001000995 | D139: Базовый набор Lego Mindstorms EV3 | F139: 1 | G139: 17.05.2019 | H139: 27.10 | I139: 100.00 | J139: 27.10 | K139: 0.00 | L139: 2008-02-18 | M139: 08-006-0021 | P139: ИК ЗМР РТ | Q139: оперативное управление
A140: 57 | C140: 1010400001000861 | D140: Базовый набор Lego- ресурсный набор Lego-зарядное устройство постоянного тока на 2 человека | F140: 1 | G140: 19.10.2018 | H140: 43.70 | I140: 100.00 | J140: 43.70 | K140: 0.00 | L140: 2008-02-18 | M140: 08-006-0021 | P140: ИК ЗМР РТ | Q140: оперативное управление
A141: 58 | C141: 1010400001000859 | D141: Базовый набор Lego- ресурсный набор Lego-зарядное устройство постоянного тока на 2 человека | F141: 1 | G141: 19.10.2018 | H141: 43.70 | I141: 100.00 | J141: 43.70 | K141: 0.00 | L141: 2008-02-18 | M141: 08-006-0021 | P141: ИК ЗМР РТ | Q141: оперативное управление
A142: 59 | C142: 1010400001000863 | D142: Базовый набор Lego- ресурсный набор Lego-зарядное устройство постоянного тока на 2 человека | F142: 1 | G142: 19.10.2018 | H142: 43.70 | I142: 100.00 | J142: 43.70 | K142: 0.00 | L142: 2008-02-18 | M142: 08-006-0021 | P142: ИК ЗМР РТ | Q142: оперативное управление
A143: 60 | C143: 1010400001000862 | D143: Базовый набор Lego- ресурсный набор Lego-зарядное устройство постоянного тока на 2 человека | F143: 1 | G143: 19.10.2018 | H143: 43.70 | I143: 100.00 | J143: 43.70 | K143: 0.00 | L143: 2008-02-18 | M143: 08-006-0021 | P143: ИК ЗМР РТ | Q143: оперативное управление
A144: 61 | C144: 1010400001000856 | D144: Базовый набор Lego- ресурсный набор Lego-зарядное устройство постоянного тока на 2 человека | F144: 1 | G144: 19.10.2018 | H144: 43.70 | I144: 100.00 | J144: 43.70 | K144: 0.00 | L144: 2008-02-18 | M144: 08-006-0021 | P144: ИК ЗМР РТ | Q144: оперативное управление
A145: 62 | C145: 1010400001000860 | D145: Базовый набор Lego- ресурсный набор Lego-зарядное устройство постоянного тока на 2 человека | F145: 1 | G145: 19.10.2018 | H145: 43.70 | I145: 100.00 | J145: 43.70 | K145: 0.00 | L145: 2008-02-18 | M145: 08-006-0021 | P145: ИК ЗМР РТ | Q145: оперативное управление
A146: 63 | C146: 1010400001000858 | D146: Базовый набор Lego- ресурсный набор Lego-зарядное устройство постоянного тока на 2 человека | F146: 1 | G146: 19.10.2018 | H146: 43.70 | I146: 100.00 | J146: 43.70 | K146: 0.00 | L146: 2008-02-18 | M146: 08-006-0021 | P146: ИК ЗМР РТ | Q146: оперативное управление
A147: 64 | C147: 1010400001000857 | D147: Базовый набор Lego- ресурсный набор Lego-зарядное устройство постоянного тока на 2 человека | F147: 1 | G147: 19.10.2018 | H147: 43.70 | I147: 100.00 | J147: 43.70 | K147: 0.00 | L147: 2008-02-18 | M147: 08-006-0021 | P147: ИК ЗМР РТ | Q147: оперативное управление
A148: 65 | C148: 163303704 | D148: Баллистический механизм для демонстрации движения тел-брошенных под различными углами к горизонту | F148: 1 | G148: 31.12.2012 | H148: 22.30 | I148: 100.00 | J148: 22.30 | K148: 0.00 | L148: 2008-02-18 | M148: 08-006-0021 | P148: ИК ЗМР РТ | Q148: оперативное управление
A149: 66 | C149: 101040000133916 | D149: Баннер | F149: 1 | G149: 31.12.2015 | H149: 8.40 | I149: 100.00 | J149: 8.40 | K149: 0.00 | L149: 2008-02-18 | M149: 08-006-0021 | P149: ИК ЗМР РТ | Q149: оперативное управление
A150: 67 | C150: 116303150 | D150: баннер с монтажем | F150: 1 | G150: 30.11.2014 | H150: 10.00 | I150: 100.00 | J150: 10.00 | K150: 0.00 | L150: 2008-02-18 | M150: 08-006-0021 | P150: ИК ЗМР РТ | Q150: оперативное управление
A151: 68 | C151: 163303783 | D151: Баня комабинированная лабораторная | F151: 1 | G151: 31.12.2012 | H151: 4.50 | I151: 100.00 | J151: 4.50 | K151: 0.00 | L151: 2008-02-18 | M151: 08-006-0021 | P151: ИК ЗМР РТ | Q151: оперативное управление
A152: 69 | C152: 016302703 | D152: Барельеф Космонавта Комарова В.И. | F152: 1 | G152: 31.05.2008 | H152: 3.50 | I152: 100.00 | J152: 3.50 | K152: 0.00 | L152: 2008-02-18 | M152: 08-006-0021 | P152: ИК ЗМР РТ | Q152: оперативное управление
A153: 70 | C153: 01380002 | D153: Беговая дорожка | F153: 1 | G153: 01.09.2003 | H153: 11.60 | I153: 100.00 | J153: 11.60 | K153: 0.00 | L153: 2008-02-18 | M153: 08-006-0021 | P153: ИК ЗМР РТ | Q153: оперативное управление
A154: 71 | C154: 0000000016302750 | D154: Беговая дорожка Power Ran 3000 | F154: 1 | G154: 27.07.2009 | H154: 71.80 | I154: 100.00 | J154: 71.80 | K154: 0.00 | L154: 2008-02-18 | M154: 08-006-0021 | P154: ИК ЗМР РТ | Q154: оперативное управление
A155: 72 | C155: 013601111 | D155: Беговая дорожка электр. | F155: 1 | G155: 30.09.2012 | H155: 32.00 | I155: 100.00 | J155: 32.00 | K155: 0.00 | L155: 2008-02-18 | M155: 08-006-0021 | P155: ИК ЗМР РТ | Q155: оперативное управление
A156: 73 | D156: Береза (21 шт.) | F156: 1 | G156: 01.12.2003 | H156: 7.50 | I156: 100.00 | J156: 7.50 | K156: 0.00 | L156: 2008-02-18 | M156: 08-006-0021 | P156: ИК ЗМР РТ | Q156: оперативное управление
A157: 74 | C157: 163303644 | D157: Беспроводная динамическая сенсорная система | F157: 1 | G157: 31.12.2012 | H157: 21.60 | I157: 100.00 | J157: 21.60 | K157: 0.00 | L157: 2008-02-18 | M157: 08-006-0021 | P157: ИК ЗМР РТ | Q157: оперативное управление
A158: =A157+1 -> 75 | C158: 163304109 | D158: Беспроводной планшет MimioPad | F158: 1 | G158: 10.12.2013 | H158: 11.30 | I158: 100.00 | J158: 11.30 | K158: 0.00 | L158: 2008-02-18 | M158: 08-006-0021 | P158: ИК ЗМР РТ | Q158: оперативное управление
A159: 76 | C159: 1010400001000799 | D159: Брусья откидные | F159: 1 | G159: 07.06.2017 | H159: 3.30 | I159: 100.00 | J159: 3.30 | K159: 0.00 | L159: 2008-02-18 | M159: 08-006-0021 | P159: ИК ЗМР РТ | Q159: оперативное управление
A160: 77 | C160: 163303784 | D160: Веcы электронные порционные CAS SW-2 | F160: 1 | G160: 31.12.2012 | H160: 5.90 | I160: 100.00 | J160: 5.90 | K160: 0.00 | L160: 2008-02-18 | M160: 08-006-0021 | P160: ИК ЗМР РТ | Q160: оперативное управление
A161: 78 | C161: 523 | D161: Велосипед | F161: 1 | G161: 01.07.2005 | H161: 3.10 | I161: 100.00 | J161: 3.10 | K161: 0.00 | L161: 2008-02-18 | M161: 08-006-0021 | P161: ИК ЗМР РТ | Q161: оперативное управление
A162: 79 | C162: 01380006 | D162: Велотренажер | F162: 1 | G162: 01.09.2003 | H162: 5.50 | I162: 100.00 | J162: 5.50 | K162: 0.00 | L162: 2008-02-18 | M162: 08-006-0021 | P162: ИК ЗМР РТ | Q162: оперативное управление
A163: 80 | C163: 01380003 | D163: Велотренажер | F163: 1 | G163: 01.09.2003 | H163: 5.70 | I163: 100.00 | J163: 5.70 | K163: 0.00 | L163: 2008-02-18 | M163: 08-006-0021 | P163: ИК ЗМР РТ | Q163: оперативное управление
A164: 81 | C164: 01380004 | D164: Велотренажер | F164: 1 | G164: 01.09.2003 | H164: 5.50 | I164: 100.00 | J164: 5.50 | K164: 0.00 | L164: 2008-02-18 | M164: 08-006-0021 | P164: ИК ЗМР РТ | Q164: оперативное управление
A165: 82 | C165: 01380005 | D165: Велотренажер | F165: 1 | G165: 01.09.2003 | H165: 5.50 | I165: 100.00 | J165: 5.50 | K165: 0.00 | L165: 2008-02-18 | M165: 08-006-0021 | P165: ИК ЗМР РТ | Q165: оперативное управление
A166: 83 | C166: 163303975 | D166: Верстак комбинированный с тисками ВК-У | F166: 1 | G166: 18.12.2013 | H166: 11.20 | I166: 100.00 | J166: 11.20 | K166: 0.00 | L166: 2008-02-18 | M166: 08-006-0021 | P166: ИК ЗМР РТ | Q166: оперативное управление
A167: 84 | C167: 163303985 | D167: Верстак комбинированный с тисками ВК-У | F167: 1 | G167: 18.12.2013 | H167: 11.20 | I167: 100.00 | J167: 11.20 | K167: 0.00 | L167: 2008-02-18 | M167: 08-006-0021 | P167: ИК ЗМР РТ | Q167: оперативное управление
A168: 85 | C168: 163303982 | D168: Верстак комбинированный с тисками ВК-У | F168: 1 | G168: 18.12.2013 | H168: 11.20 | I168: 100.00 | J168: 11.20 | K168: 0.00 | L168: 2008-02-18 | M168: 08-006-0021 | P168: ИК ЗМР РТ | Q168: оперативное управление
A169: 86 | C169: 163303980 | D169: Верстак комбинированный с тисками ВК-У | F169: 1 | G169: 18.12.2013 | H169: 11.20 | I169: 100.00 | J169: 11.20 | K169: 0.00 | L169: 2008-02-18 | M169: 08-006-0021 | P169: ИК ЗМР РТ | Q169: оперативное управление
A170: 87 | C170: 163303979 | D170: Верстак комбинированный с тисками ВК-У | F170: 1 | G170: 18.12.2013 | H170: 11.20 | I170: 100.00 | J170: 11.20 | K170: 0.00 | L170: 2008-02-18 | M170: 08-006-0021 | P170: ИК ЗМР РТ | Q170: оперативное управление
A171: 88 | C171: 163303976 | D171: Верстак комбинированный с тисками ВК-У | F171: 1 | G171: 18.12.2013 | H171: 11.20 | I171: 100.00 | J171: 11.20 | K171: 0.00 | L171: 2008-02-18 | M171: 08-006-0021 | P171: ИК ЗМР РТ | Q171: оперативное управление
A172: 89 | C172: 163303981 | D172: Верстак комбинированный с тисками ВК-У | F172: 1 | G172: 18.12.2013 | H172: 11.20 | I172: 100.00 | J172: 11.20 | K172: 0.00 | L172: 2008-02-18 | M172: 08-006-0021 | P172: ИК ЗМР РТ | Q172: оперативное управление
A173: 90 | C173: 163303983 | D173: Верстак комбинированный с тисками ВК-У | F173: 1 | G173: 18.12.2013 | H173: 11.20 | I173: 100.00 | J173: 11.20 | K173: 0.00 | L173: 2008-02-18 | M173: 08-006-0021 | P173: ИК ЗМР РТ | Q173: оперативное управление
A174: 91 | C174: 163303987 | D174: Верстак комбинированный с тисками ВК-У | F174: 1 | G174: 18.12.2013 | H174: 11.20 | I174: 100.00 | J174: 11.20 | K174: 0.00
A175: 92 | C175: 163303986 | D175: Верстак комбинированный с тисками ВК-У | F175: 1 | G175: 18.12.2013 | H175: 11.20 | I175: 100.00 | J175: 11.20 | K175: 0.00 | L175: 2008-02-18 | M175: 08-006-0021 | P175: ИК ЗМР РТ | Q175: оперативное управление
A176: 93 | C176: 163303984 | D176: Верстак комбинированный с тисками ВК-У | F176: 1 | G176: 18.12.2013 | H176: 11.20 | I176: 100.00 | J176: 11.20 | K176: 0.00 | L176: 2008-02-18 | M176: 08-006-0021 | P176: ИК ЗМР РТ | Q176: оперативное управление
A177: 94 | C177: 163303977 | D177: Верстак комбинированный с тисками ВК-У | F177: 1 | G177: 18.12.2013 | H177: 11.20 | I177: 100.00 | J177: 11.20 | K177: 0.00 | L177: 2008-02-18 | M177: 08-006-0021 | P177: ИК ЗМР РТ | Q177: оперативное управление
A178: 95 | C178: 163303988 | D178: Верстак комбинированный с тисками ВК-У | F178: 1 | G178: 18.12.2013 | H178: 11.20 | I178: 100.00 | J178: 11.20 | K178: 0.00 | L178: 2008-02-18 | M178: 08-006-0021 | P178: ИК ЗМР РТ | Q178: оперативное управление
A179: 96 | C179: 163303974 | D179: Верстак комбинированный с тисками ВК-У | F179: 1 | G179: 18.12.2013 | H179: 11.20 | I179: 100.00 | J179: 11.20 | K179: 0.00 | L179: 2008-02-18 | M179: 08-006-0021 | P179: ИК ЗМР РТ | Q179: оперативное управление
A180: 97 | C180: 163303978 | D180: Верстак комбинированный с тисками ВК-У | F180: 1 | G180: 18.12.2013 | H180: 11.20 | I180: 100.00 | J180: 11.20 | K180: 0.00 | L180: 2008-02-18 | M180: 08-006-0021 | P180: ИК ЗМР РТ | Q180: оперативное управление
A181: 98 | C181: 010360300 | D181: Весы ВМЭН-200 | F181: 1 | G181: 31.12.2008 | H181: 5.60 | I181: 100.00 | J181: 5.60 | K181: 0.00 | L181: 2008-02-18 | M181: 08-006-0021 | P181: ИК ЗМР РТ | Q181: оперативное управление
A182: 99 | C182: 163303275 | D182: Весы технические до 1000 гр | F182: 1 | G182: 31.12.2007 | H182: 7.70 | I182: 100.00 | J182: 7.70 | K182: 0.00 | L182: 2008-02-18 | M182: 08-006-0021 | P182: ИК ЗМР РТ | Q182: оперативное управление
A183: 100 | C183: 163303678 | D183: Весы технические с разновесами | F183: 1 | G183: 31.12.2012 | H183: 4.50 | I183: 100.00 | J183: 4.50 | K183: 0.00 | L183: 2008-02-18 | M183: 08-006-0021 | P183: ИК ЗМР РТ | Q183: оперативное управление
A184: 101 | C184: 163303780 | D184: Весы элепктронные | F184: 1 | G184: 31.12.2012 | H184: 3.30 | I184: 100.00 | J184: 3.30 | K184: 0.00 | L184: 2008-02-18 | M184: 08-006-0021 | P184: ИК ЗМР РТ | Q184: оперативное управление
A185: 102 | C185: 163303275 | D185: Вибормассажер | F185: 1 | G185: 31.12.2007 | H185: 8.90 | I185: 100.00 | J185: 8.90 | K185: 0.00 | L185: 2008-02-18 | M185: 08-006-0021 | P185: ИК ЗМР РТ | Q185: оперативное управление
A186: 103 | C186: 101040000105010 | D186: видепроектор Epson EB-X31 | F186: 1 | G186: 04.10.2016 | H186: 39.90 | I186: 100.00 | J186: 39.90 | K186: 0.00 | L186: 2008-02-18 | M186: 08-006-0021 | P186: ИК ЗМР РТ | Q186: оперативное управление
A187: 104 | C187: 101040000105011 | D187: видепроектор Epson EB-X31 | F187: 1 | G187: 04.10.2016 | H187: 39.90 | I187: 100.00 | J187: 39.90 | K187: 0.00 | L187: 2008-02-18 | M187: 08-006-0021 | P187: ИК ЗМР РТ | Q187: оперативное управление
A188: 105 | C188: 101040000105012 | D188: видепроектор Epson EB-X31 | F188: 1 | G188: 04.10.2016 | H188: 39.90 | I188: 100.00 | J188: 39.90 | K188: 0.00 | L188: 2008-02-18 | M188: 08-006-0021 | P188: ИК ЗМР РТ | Q188: оперативное управление
A189: 106 | C189: 016302923 | D189: Витрины-шкаф д-документов | F189: 1 | G189: 20.02.2010 | H189: 10.00 | I189: 100.00 | J189: 10.00 | K189: 0.00 | L189: 2008-02-18 | M189: 08-006-0021 | P189: ИК ЗМР РТ | Q189: оперативное управление
A190: 107 | C190: 116303328 | D190: Водногреватель | F190: 1 | G190: 31.03.2011 | H190: 6.70 | I190: 100.00 | J190: 6.70 | K190: 0.00 | L190: 2008-02-18 | M190: 08-006-0021 | P190: ИК ЗМР РТ | Q190: оперативное управление
A191: 108 | C191: 116303444 | D191: Водонагреватель | F191: 1 | G191: 31.03.2011 | H191: 7.80 | I191: 100.00 | J191: 7.80 | K191: 0.00 | L191: 2008-02-18 | M191: 08-006-0021 | P191: ИК ЗМР РТ | Q191: оперативное управление
A192: 109 | C192: 116303445 | D192: Водонагреватель | F192: 1 | G192: 31.03.2011 | H192: 6.70 | I192: 100.00 | J192: 6.70 | K192: 0.00 | L192: 2008-02-18 | M192: 08-006-0021 | P192: ИК ЗМР РТ | Q192: оперативное управление
A193: 110 | C193: 016303065 | D193: Водонагреватель | F193: 1 | G193: 15.12.2010 | H193: 7.80 | I193: 100.00 | J193: 7.80 | K193: 0.00 | L193: 2008-02-18 | M193: 08-006-0021 | P193: ИК ЗМР РТ | Q193: оперативное управление
A194: 111 | C194: 016303066 | D194: Водонагреватель | F194: 1 | G194: 15.12.2010 | H194: 9.00 | I194: 100.00 | J194: 9.00 | K194: 0.00 | L194: 2008-02-18 | M194: 08-006-0021 | P194: ИК ЗМР РТ | Q194: оперативное управление
A195: 112 | C195: 016303064 | D195: Водонагреватель | F195: 1 | G195: 15.12.2010 | H195: 7.80 | I195: 100.00 | J195: 7.80 | K195: 0.00 | L195: 2008-02-18 | M195: 08-006-0021 | P195: ИК ЗМР РТ | Q195: оперативное управление
A196: 113 | C196: 101040000133918 | D196: Водонагреватель проточный | F196: 1 | G196: 31.12.2015 | H196: 26.20 | I196: 100.00 | J196: 26.20 | K196: 0.00 | L196: 2008-02-18 | M196: 08-006-0021 | P196: ИК ЗМР РТ | Q196: оперативное управление
A197: 114 | C197: 116303662 | D197: водоумягчитель 8 л | F197: 1 | G197: 31.12.2011 | H197: 4.60 | I197: 100.00 | J197: 4.60 | K197: 0.00 | L197: 2008-02-18 | M197: 08-006-0021 | P197: ИК ЗМР РТ | Q197: оперативное управление
A198: 115 | C198: 163303275 | D198: Выпрямитель В-24 | F198: 1 | G198: 31.12.2007 | H198: 7.10 | I198: 100.00 | J198: 7.10 | K198: 0.00 | L198: 2008-02-18 | M198: 08-006-0021 | P198: ИК ЗМР РТ | Q198: оперативное управление
A199: 116 | C199: 0000003417 | D199: Вытяжная вентиляция | F199: 1 | G199: 09.01.2020 | H199: 64.00 | I199: 100.00 | J199: 64.00 | K199: 0.00 | L199: 2008-02-18 | M199: 08-006-0021 | P199: ИК ЗМР РТ | Q199: оперативное управление
A200: 117 | C200: 163303918 | D200: Вязальная машина SILVER SK-280 | F200: 1 | G200: 08.10.2013 | H200: 31.60 | I200: 100.00 | J200: 31.60 | K200: 0.00 | L200: 2008-02-18 | M200: 08-006-0021 | P200: ИК ЗМР РТ | Q200: оперативное управление
A201: 118 | C201: 163303917 | D201: Вязальная машина SILVER SRP60N | F201: 1 | G201: 08.10.2013 | H201: 27.00 | I201: 100.00 | J201: 27.00 | K201: 0.00 | L201: 2008-02-18 | M201: 08-006-0021 | P201: ИК ЗМР РТ | Q201: оперативное управление
A202: 119 | C202: 163303275 | D202: Генератор сигналов | F202: 1 | G202: 31.12.2007 | H202: 8.50 | I202: 100.00 | J202: 8.50 | K202: 0.00 | L202: 2008-02-18 | M202: 08-006-0021 | P202: ИК ЗМР РТ | Q202: оперативное управление
... 959 more rows
